Cogmind - Beta 9.4 @@@ ROGUE MODE // 2020.02.15 @ 20:44:47 Player: Sidtz Result: Destroyed by G-34 Mercenary with Small Laser Performance ------------- Evolutions (0) 0 Regions Visited (1) 200 Robots Destroyed (22) 110 Value Destroyed (457) 457 Prototype IDs (2) 40 Alien Tech Used (0) 0 Bonus (0) 0 TOTAL SCORE: 807 Bonus ------- None Cogmind --------- Core Integrity 0/250 Matter 237/300 Energy 250/250 System Corruption 0% Temperature Cool (12) Movement Walking (120) Location -10/Materials Parts ------- > --- POWER (1) -------- Ion Engine > --- PROPULSION (2) --- Aluminum Leg Aluminum Leg > --- UTILITY (2) ------ Improved Heat Sink Improved Targeting Computer > --- WEAPON (2) ------- (None) > --- INVENTORY (4) ---- Compact Wheel Improved Terrain Scanner Peak State ------------ > --- POWER ------------ Light Nuclear Core > --- PROPULSION ------- Armored Wheel Armored Wheel > --- UTILITY ---------- Improved Heat Sink Improved Targeting Computer > --- WEAPON ----------- Particle Gun Mining Laser > --- INVENTORY -------- Compact Wheel Improved Terrain Scanner [Rating: 15] Favorites ----------- Power Light Nuclear Core Engine Light Ion Engine Power Core Light Nuclear Core Propulsion Armored Wheel Leg Aluminum Leg Wheel Armored Wheel Utility Improved Targeting Computer Device Improved Heat Sink Storage Small Storage Unit Processor Improved Targeting Computer Weapon Small Laser Energy Gun Small Laser Energy Cannon Beam Cannon Ballistic Gun Assault Rifle Special Weapon Mining Laser Build | -11 -10 ------- Run | Scr Mat Slots Evolved . | . . Power . | . . Propulsion . | . . Utility . | . . Weapon . | . . Parts Attached 26 | 7 19 Power 3 | 1 2 Engine 2 | 1 1 Core 1 | . 1 Reactor . | . . Propulsion 8 | 2 6 Treads . | . . Leg 4 | 2 2 Wheel 4 | . 4 Hover . | . . Flight . | . . Utility 4 | 2 2 Device 1 | . 1 Storage 1 | 1 . Processor 2 | 1 1 Hackware . | . . Protection . | . . Artifact . | . . Weapon 11 | 2 9 Energy Gun 6 | 2 4 Energy Cannon 1 | . 1 Ballistic Gun 1 | . 1 Ballistic Cannon . | . . Launcher . | . . Special Weapon 3 | . 3 Impact Weapon . | . . Slashing Weapon . | . . Piercing Weapon . | . . Special Melee Weapon . | . . Unidentified Prototypes . | . . Parts Lost 10 | . 10 Power 2 | . 2 Propulsion . | . . Utility . | . . Weapon 8 | . 8 Highest Loss Streak 4 | . 4 Average Slot Usage (%) 97 | . 97 Engine 2 | . 2 Core 10 | . 10 Leg 6 | . 6 Wheel 21 | . 21 Device 8 | . 8 Processor 18 | . 18 Energy Gun 17 | . 17 Energy Cannon 1 | . 1 Ballistic Gun 3 | . 3 Special Weapon 4 | . 4 Naked Turns . | . . Heaviest Build 11 | 10 11 Greatest Support 24 | 20 24 Greatest Overweight (x) 3 | . 3 Average Overweight (x) . | . . Largest Inventory Capacity 6 | 6 6 Average Capacity 4 | 5 4 Most Carried 6 | 6 6 Average Carried 4 | 5 3 Final Capacity 6 | 6 4 Final Carried 6 | 6 2 Class Distribution -------------------- 58% | Mutant 41% | Scavenger-Mutant Dominant Class ---------------- Scavenger-Mutant | -10/Materials Resources | -11 -10 ----------- Run | Scr Mat Matter Collected 416 | 270 146 Remotely . | . . Salvage Created 638 | 222 416 Parts 40 | 17 23 Haulers Intercepted . | . . Recyclers Shooed . | . . Parts Field Recycled . | . . Retrieved Matter . | . . Parts Self-Destructed . | . . Prevented . | . . Kills | -11 -10 ------- Run | Scr Mat Combat Hostiles Destroyed 12 | . 12 Guns 8 | . 8 Cannons 3 | . 3 AOE 1 | . 1 Classes Destroyed 6 | 3 3 Worker 2 | 2 . Tunneler 5 | 5 . Recycler 1 | 1 . Watcher 2 | . 2 Swarmer 3 | . 3 Grunt 9 | . 9 Best Kill Streak 4 | 3 4 Combat Bots Only 4 | . 4 Max Kills in Single Turn 2 | 2 1 Gunslinging . | . . Exploded 1 | . 1 Melee . | . . Uniques/NPCs Destroyed . | . . Combat | -11 -10 -------- Run | Scr Mat Damage Taken 1274 | 28 1246 Core 255 | . 255 Absorbed by Shields . | . . Core Remaining (%) 100 | 100 . Volleys Fired 77 | 19 58 Largest 2 | 2 2 Hottest 160 | 80 160 Shots Fired 138 | 38 100 Gun 121 | 38 83 Cannon 13 | . 13 Launcher . | . . Special 4 | . 4 Kinetic 22 | . 22 Thermal 89 | 19 70 Explosive . | . . Electromagnetic 27 | 19 8 Robot Hit Streak 20 | 5 20 Robot Miss Streak 5 | 5 5 Penetration Max . | . . Secondary Targets . | . . Shots Hit Robots 92 | 20 72 Core Hits 35 | 9 26 Critical Hits . | . . Critical Kills . | . . Critical Parts Destroyed . | . . Melee Attacks . | . . Impact . | . . Slashing . | . . Piercing . | . . Sneak Attacks . | . . Combat Hostiles . | . . Follow-up Attacks . | . . Damage Inflicted 1325 | 364 961 Guns 911 | 277 634 Cannons 156 | . 156 Explosions 207 | 87 120 Melee . | . . Ramming 3 | . 3 Kinetic 147 | . 147 Thermal 908 | 185 723 Explosive . | . . Electromagnetic 267 | 179 88 Impact . | . . Slashing . | . . Piercing . | . . Highest Corruption . | . . Average Corruption . | . . Corruption Purged . | . . Overload Shots . | . . Overflow Damage 38 | 15 23 Projectiles 5 | . 5 Explosions 33 | 15 18 Melee . | . . Knockbacks . | . . Impact . | . . Kinetic . | . . Secondary . | . . Self-Inflicted Damage 70 | 28 42 Shots 3 | 1 2 Rammed . | . . Targets Rammed 1 | . 1 Kicked 1 | . 1 Crushed . | . . Highest Temperature 420 | 144 420 Average Temperature 103 | 64 122 Received Heat Transfer 513 | . 513 Effects 5 | . 5 Shutdowns 1 | . 1 Energy Bleed 3 | . 3 Matter Decay 1 | . 1 Siege Activations . | . . Robots Corrupted . | . . Combat Hostiles . | . . Parts Fried 1 | 1 . Impact Corruptions . | . . Robots Melted . | . . Combat Hostiles . | . . Parts Melted 1 | . 1 Heat Transferred 1839 | 325 1514 Parts Sabotaged . | . . Parts Stolen . | . . Parts Stripped . | . . Power Chain Reactions 4 | 2 2 Missiles Intercepted . | . . Alert | -11 -10 ------- Run | Scr Mat Peak Influence 305 | 40 305 Average Influence 108 | 19 145 Maximum Alert Level 1 | . 1 Low Security (%) 85 | 100 78 Level 1 14 | . 21 Level 2 . | . . Level 3 . | . . Level 4 . | . . Level 5 . | . . High Security . | . . Max Security . | . . Squads Dispatched 7 | . 7 Investigation 3 | . 3 Extermination . | . . Reinforcement 4 | . 4 Assault . | . . Garrison . | . . Intercept . | . . Construction Impeded . | . . Haulers Reinforced . | . . Stealth | -11 -10 --------- Run | Scr Mat Distress Signals 1 | . 1 Communications Jammed . | . . Distress Signals . | . . Times Spotted 31 | . 31 Peak Tracking Total 6 | . 6 Tactical Retreats 3 | . 3 Traps | -11 -10 ------- Run | Scr Mat Traps Triggered 3 | . 3 Indirectly . | . . Trap Hack Attempts . | . . Triggered . | . . Disarmed . | . . Reprogrammed . | . . Reused . | . . Traps Extracted . | . . Installed . | . . Triggered . | . . Machines | -11 -10 ---------- Run | Scr Mat Machines Disabled 2 | . 2 Max in Single Turn 1 | . 1 Machines Sabotaged . | . . Garrisons Compromised . | . . Overloaded Fab Kills . | . . Fab Network Shutdowns . | . . Hacking | -11 -10 --------- Run | Scr Mat Machines Accessed 3 | . 3 Terminals 1 | . 1 Fabricators . | . . Repair Stations . | . . Recycling Units 2 | . 2 Scanalyzers . | . . Garrison Access . | . . Total Hacks 12 | . 12 Successful 8 | . 8 Failed 4 | . 4 Catastrophic . | . . Database Lockouts . | . . Manual . | . . Terminals 6 | . 6 Fabricators . | . . Repair Stations . | . . Recycling Units 6 | . 6 Scanalyzers . | . . Garrison Access . | . . Terminal Hacks 3 | . 3 Record 1 | . 1 Prototype ID Bank 1 | . 1 Alert Level 1 | . 1 Fabricator Hacks . | . . Repair Station Hacks . | . . Recycling Unit Hacks 5 | . 5 Recycle Component 1 | . 1 Process 2 | . 2 Retrieve Matter 1 | . 1 Retrieve Components 1 | . 1 Scanalyzer . | . . Garrison Access Hacks . | . . Unauthorized Hacks . | . . Terminals . | . . Fabricators . | . . Repair Stations . | . . Recycling Units . | . . Scanalyzers . | . . Garrison Access . | . . Data Cores Recovered . | . . Used . | . . Hacking Detections 2 | . 2 Full Trace Events 1 | . 1 Feedback Events . | . . Feedback Blocked . | . . Robot Schematics Acquired . | . . Robots Built . | . . Matter . | . . Time . | . . Total Robot Build Rating . | . . Part Schematics Acquired . | . . Parts Built . | . . Matter . | . . Time . | . . Total Part Build Rating . | . . Parts Repaired . | . . Time . | . . Parts Recycled 1 | . 1 Recycled Matter 172 | . 172 Retrieved Matter . | . . Retrieved Components . | . . Parts Scanalyzed . | . . Part Schematics Acquired . | . . Parts Damaged . | . . Bothacking | -11 -10 ------------ Run | Scr Mat Used RIF Installer . | . . Robots Hacked . | . . Non-combat . | . . Combat . | . . Robot Hacks Applied . | . . Relay Couplers Released . | . . Robots Rewired . | . . Allies Hacked . | . . Hacks Repelled . | . . Allies | -11 -10 -------- Run | Scr Mat Total Allies . | . . Largest Group . | . . Highest-Rated Group . | . . Highest-Rated Ally . | . . Total Orders . | . . Ally Attacks . | . . Total Damage . | . . Kills . | . . Allies Corrupted . | . . Allies Melted . | . . Intel | -11 -10 ------- Run | Scr Mat Robot Analysis Total . | . . Derelict Logs Recovered . | . . Drone Launches . | . . Drone Recoveries . | . . Exploration | -11 -10 ------------- Run | Scr Mat Turns Passed 788 | 233 555 Spaces Moved 491 | 131 360 Core 16 | 12 4 Treads . | . . Legs 189 | 119 70 Wheels 286 | . 286 Hover . | . . Flight . | . . Fastest Speed 50 | 50 90 Average Speed 101 | 113 96 Slowest Speed 200 | 120 200 Overloaded Moves . | . . Propulsion Burnouts . | . . Robots Hopped . | . . Cave-ins Triggered . | . . Exploration Rate (%) 36 | 7 65 Regions Visited 1 Branch Regions . Pre-discovered Areas . | . . Known Exits Taken . | . . Unknown Exits Taken 1 | 1 . Scrap Searched . | . . Spaces Dug . | . . Terrain Destroyed 15 | 9 6 Melee . | . . Projectile 1 | . 1 AOE 14 | 9 5 Actions | -11 -10 --------- Run | Scr Mat Total 634 | 176 458 Wait 6 | 5 1 Move 490 | 130 360 Hop . | . . Pick Up 22 | 12 10 Fast Attach 10 | 4 6 Attach 13 | 3 10 Detach . | . . Swap 3 | . 3 Drop 12 | 3 9 Fire 77 | 19 58 Melee . | . . Ram . | . . Kick 1 | . 1 Crush . | . . Escape Stasis . | . . Rewire . | . . Trap . | . . Miscellaneous . | . . Route ------- -11/Scrapyard -10/Materials (discovered 2 exits: [*Mat] / [*Min]) History --------- Turn | Location | Event 19 | -11/Scrapyard | Discovered new exit (range 14) 234 | -11/Scrapyard | Entered Materials 333 | -10/Materials | Lost 3 parts (1p2w) 357 | -10/Materials | Build established: Mutant 368 | -10/Materials | Discovered new exit (range 16) 451 | -10/Materials | Core integrity fell below 50% 602 | -10/Materials | Discovered new exit (range 10) 757 | -10/Materials | Core integrity fell below 20% 789 | -10/Materials | Destroyed by G-34 Mercenary with Small Laser Last Messages --------------- Acquired Aluminum Leg. Triggered Alarm Trap. An alarm sounds. ALERT: Alarm triggered, dispatching investigation squad. Triggered Alarm Trap. An alarm sounds. ALERT: Alarm triggered, dispatching investigation squad. U-05 Engineer lays Concrete. Triggered Alarm Trap. An alarm sounds. ALERT: Alarm triggered, dispatching investigation squad. [Achievement: Party Time] U-05 Engineer lays Concrete. Lgt. Nuclear Core destroyed. Sml. Laser destroyed. Kicked G-34 Mercenary out of the way. U-05 Engineer lays Concrete. Mining Laser destroyed. G-34 Mercenary destroyed. Assault Rifle destroyed. Map ----- +----------------------------------------------------+ | ???????????????????????????????????????????????? | | ???????????????????????????????????????????????? | | ???????????????????????????????????????????????? | | ???????????????????????????????????????????????? | | ???????????????????????????????????????????????? | | ???????????########################????????????? | | ?????????? #????????????? | | ?????????? +????????????? | | ?????????? """ #????????????? | | ?????????????###/####### """"" % #????????????? | | ???????????????????????# """"" #????????????? | | ???????????????????????# """"" #????????????? | | ???????????????????????# """ #????????????? | | ???????????????????????# #????????????? | | ?????????????????""????# !#????????????? | | ?????????????????"""???# """ #????????????? | | ?????????????????"""???#u """"" #????????????? | | ????????????????? ???#gg""""" #????????????? | | ?????????????????#/#???# """"" #????????????? | | ????????????????## ##??# """ #????????????? | | ????????????????# #??# #????????????? | | ????????????????# #??# #????????????? | | ????????????????# =#??# """ #????????????? | | ????????????????+ %%#??# """"" #????????????? | | ????????????????# #??# """"" #????????????? | | ????????????????# #??# @""""" #????????????? | | ???????????????## ##?# """ #????????????? | | ???############# ### #????????????? | | ? [ = ???????? | | ? =% w ???????? | | ? = ???????? | | ???############# ##########+### ????????? | | ???????????????### ###???????????????+?????????? | | ###???#########??# #?######????????????????????? | | ##### #### #?# #????????????????????? | | #?# #????????????????????? | | < #?# #????????????????????? | | #?# #????????????????????? | | #####" "## #?# #????????????????????? | | # #???#" !"! "## #?# #########????????????? | | # #???#"""""""## #?# ##!!!!!!###########??? | | # ############## #?# ##!!!!!!## ! ###? | | ## ## ### ## ## "" ""#? | | ## # ##+##### ## "Y Y"#? | | + # ^ # "" ""#? | | ## + + ###? | | ## # % # """ #??? | | #+#### # ############## # """ #??? | | # ## ##????????????# # """ #??? | | # ## #?????????????+ # #??? | +----------------------------------------------------+ Best States ------------- Heat Dissipation 39 Energy Generation 14 Energy Capacity 250 Matter Stores 300 Matter Capacity 300 Sight Range 16 Terrain Scan Density 60 Evasion (%) 50 Targeting Accuracy 6 Item Schematics ----------------- None Robot Schematics ------------------ None Fabricated ------------ Nothing Alien Tech Used ----------------- None Achievements -------------- Party Time Challenges ------------ None Game ------ Seed RecoilAssaultScreen Manual? 0 Play Time 00:25:04 Cumulative 2.0 hours Start 2020.02.15 @ 20:22:38 End 2020.02.15 @ 20:44:47 Sessions 1 Manual Loads 0 Difficulty Rogue Special Mode None Game No. 5 Rogue 5 Adventurer 0 Explorer 0 Win Type - Total 0 Types 0/0/0/0/0/0/0 Lore% 1 Gallery% 5 Achievement% 5 Wizard Run 0 Options --------- ASCII 0 Keyboard 0 Movement Numpad Keybinds 0 Fullscreen 1 Font 16/SmallcapsGlow Map View 75x55 Tactical HUD 0 Map Filters NONE Filters NONE Steam 1 RUN: 74341ede-a433-4044-a981-efc2169e9349